fUSD/lending_fUSD_20260404
["ID","MTS","AMOUNT","RATE_DAILY","PERIOD"]
[419671190,1775275840910,-500.0,0.00013698,2]
[419671191,1775275840919,-500.0,0.00013698,2]
[419671192,1775275840931,-500.0,0.00013698,2]
[419671193,1775275840940,-500.0,0.00013698,2]
[419671194,1775275840949,-359.10439347,0.00013698,2]
[419671195,1775275840959,-515.28433318,0.00013698,2]
[419671196,1775275840968,-500.0,0.00013698,2]
[419671197,1775275840978,-500.0,0.00013698,2]
[419671198,1775275840987,-500.0,0.00013698,2]
[419671200,1775275840996,-500.0,0.00013698,2]
[419671201,1775275841006,-500.0,0.00013698,2]
[419671202,1775275841015,-500.0,0.00013698,2]
[419671203,1775275841025,-500.0,0.00013698,2]
[419671204,1775275841034,-500.0,0.00013698,2]
[419671205,1775275841045,-500.0,0.00013698,2]
[419671206,1775275841054,-500.0,0.00013698,2]
[419671207,1775275841066,-500.0,0.00013698,2]
[419671208,1775275841075,-500.0,0.00013698,2]
[419671209,1775275841085,-500.0,0.00013698,2]
[419671210,1775275841094,-500.0,0.00013698,2]
[419671211,1775275841103,-500.0,0.00013698,2]
[419671212,1775275841112,-500.0,0.00013698,2]
[419671213,1775275841121,-500.0,0.00013698,2]
[419671214,1775275841131,-500.0,0.00013698,2]
[419671215,1775275841140,-500.0,0.00013698,2]
[419671216,1775275841149,-500.0,0.00013698,2]
[419671217,1775275841158,-500.0,0.00013698,2]
[419671218,1775275841167,-500.0,0.00013698,2]
[419671219,1775275841176,-500.0,0.00013698,2]
[419671220,1775275841185,-679.79,0.00013698,2]
[419671221,1775275841194,-500.0,0.00013698,2]
[419671222,1775275841203,-679.79,0.00013698,2]
[419671223,1775275841212,-500.0,0.00013698,2]
[419671224,1775275841221,-679.79,0.00013698,2]
[419671225,1775275841231,-315.75,0.00013698,2]
[419671226,1775275841240,-679.79,0.00013698,2]
[419671227,1775275841249,-679.79,0.00013698,2]
[419671228,1775275841258,-679.79,0.00013698,2]
[419671229,1775275841267,-679.79,0.00013698,2]
[419671230,1775275841276,-679.79,0.00013698,2]
[419671231,1775275841286,-679.79,0.00013698,2]
[419671232,1775275841295,-679.79,0.00013698,2]
[419671233,1775275841304,-679.79,0.00013698,2]
[419671234,1775275841314,-500.0,0.00013698,2]
[419671235,1775275841323,-500.0,0.00013698,2]
[419671236,1775275841332,-500.0,0.00013698,2]
[419671237,1775275841341,-500.0,0.00013698,2]
[419671238,1775275841351,-500.0,0.00013698,2]
[419671239,1775275841360,-171.3934212,0.00013698,2]
[419671240,1775275841369,-500.0,0.00013698,2]
[419671241,1775275841378,-500.0,0.00013698,2]
[419671242,1775275841388,-500.0,0.00013698,2]
[419671243,1775275841399,-500.0,0.00013698,2]
[419671244,1775275841409,-500.0,0.00013698,2]
[419671245,1775275841419,-500.0,0.00013698,2]
[419671246,1775275841428,-500.0,0.00013698,2]
[419671247,1775275841438,-500.0,0.00013698,2]
[419671248,1775275841449,-153.3776321,0.00013698,2]
[419671249,1775275841459,-500.0,0.00013698,2]
[419671250,1775275841469,-502.02201151,0.00013698,2]
[419671251,1775275841479,-500.0,0.00013698,2]
[419671252,1775275841489,-500.0,0.00013698,2]
[419671253,1775275841499,-500.0,0.00013698,2]
[419671254,1775275841508,-500.0,0.00013698,2]
[419671255,1775275841517,-500.0,0.00013698,2]
[419671256,1775275841527,-507.01970036,0.00013698,2]
[419671257,1775275841538,-500.0,0.00013698,2]
[419671258,1775275841548,-500.0,0.00013698,2]
[419671259,1775275841558,-500.0,0.00013698,2]
[419671260,1775275841569,-500.0,0.00013698,2]
[419671261,1775275841579,-500.0,0.00013698,2]
[419671262,1775275841588,-500.0,0.00013698,2]
[419671263,1775275841597,-500.0,0.00013698,2]
[419671264,1775275841608,-500.0,0.00013698,2]
[419671265,1775275841617,-500.0,0.00013698,2]
[419671266,1775275841626,-500.0,0.00013698,2]
[419671267,1775275841635,-500.0,0.00013698,2]
[419671268,1775275841644,-500.0,0.00013698,2]
[419671269,1775275841654,-500.0,0.00013698,2]
[419671270,1775275841665,-500.0,0.00013698,2]
[419671271,1775275841676,-500.0,0.00013698,2]
[419671272,1775275841686,-500.0,0.00013698,2]
[419671273,1775275841696,-500.0,0.00013698,2]
[419671274,1775275841706,-500.0,0.00013698,2]
[419671275,1775275841716,-500.0,0.00013698,2]
[419671276,1775275841725,-500.0,0.00013698,2]
[419671277,1775275841734,-500.0,0.00013698,2]
[419671278,1775275841744,-500.0,0.00013698,2]
[419671279,1775275841754,-322.40547967,0.00013698,2]
[419671280,1775275841764,-150.0,0.00013699,2]
[419671281,1775275841773,-150.0,0.00013699,2]
[419671282,1775275841783,-150.0,0.00013699,2]
[419671283,1775275841792,-150.0,0.00013699,2]
[419671284,1775275841801,-988.4,0.00013699,2]
[419671285,1775275841811,-200.0,0.00013699,2]
[419671286,1775275841821,-166.66,0.00013699,2]
[419671287,1775275841831,-313.327004,0.00013699,2]
[419671288,1775275841841,-313.327004,0.00013699,2]
[419671289,1775275841850,-313.327004,0.00013699,2]
[419671290,1775275841859,-313.327004,0.00013699,2]
[419671291,1775275841868,-501.09720442,0.00013699,2]
[419671292,1775275841877,-502.58762782,0.00013699,2]
[419671293,1775275841886,-500.0,0.00013699,2]
[419671294,1775275841895,-500.0,0.00013699,2]
[419671295,1775275841905,-500.0,0.00013699,2]
[419671296,1775275841914,-500.0,0.00013699,2]
[419671297,1775275841924,-500.0,0.00013699,2]
[419671298,1775275841935,-500.0,0.00013699,2]
[419671299,1775275841944,-500.0,0.00013699,2]
[419671300,1775275841953,-500.84321214,0.00013699,2]
[419671301,1775275841962,-501.37713859,0.00013699,2]
[419671302,1775275841971,-501.55161327,0.00013699,2]
[419671303,1775275841980,-501.15172574,0.00013699,2]
[419671304,1775275841989,-250.0,0.0001375,2]
[419671305,1775275841998,-823.0,0.00013834,2]
[419671306,1775275842007,-166.66,0.00013836,2]
[419671307,1775275842016,-3292.0,0.00013851,2]
[419671308,1775275842026,-852.0,0.00013958,2]
[419671309,1775275842036,-150.0,0.00013973,2]
[419671310,1775275842045,-150.0,0.00013973,2]
[419671311,1775275842055,-150.0,0.00013973,2]
[419671312,1775275842064,-150.0,0.00013973,2]
[419671313,1775275842073,-166.66,0.00013973,2]
[419671314,1775275842083,-500.0,0.00013984,2]
[419671315,1775275842092,-679.79,0.00013984,2]
[419671316,1775275842101,-473.51720145,0.00014006,2]
[419671317,1775275842112,-2860.0,0.00014058,5]
[419671318,1775275842121,-166.66,0.0001411,2]
[419671319,1775275842130,-150.0,0.00014247,2]
[419671320,1775275842139,-150.0,0.00014247,2]
[419671321,1775275842149,-166.66,0.00014247,2]
[419671322,1775275842159,-502.59752033,0.00014247,2]
[419671323,1775275842169,-503.75625281,0.00014247,2]
[419671324,1775275842180,-1000.0,0.00014247,2]
[419671325,1775275842190,-1001.37054133,0.00014247,2]
[419671326,1775275842199,-1000.0,0.00014247,2]
[419671327,1775275842208,-1000.0,0.00014247,2]
[419671328,1775275842217,-1000.0,0.00014247,2]
[419671329,1775275842226,-2000.0,0.00014259,2]
[419671330,1775275842235,-7234.12629661,0.00014321,2]
[419671331,1775275842244,-988.4,0.00014384,2]
[419671332,1775275842253,-166.66,0.00014384,2]
[419671333,1775275842262,-150.0,0.000144,2]
[419671334,1775275842271,-150.0,0.000144,2]
[419671335,1775275842280,-150.0,0.000144,2]
[419671336,1775275842289,-150.33770113,0.000144,2]
[419671337,1775275842299,-150.0,0.000144,2]
[419671338,1775275842308,-150.0,0.000144,2]
[419671339,1775275842317,-150.0,0.000144,2]
[419671340,1775275842326,-150.0,0.000144,2]
[419671341,1775275842336,-150.0,0.000144,2]
[419671342,1775275842347,-150.0,0.000144,2]
[419671343,1775275842358,-150.0,0.000144,2]
[419671344,1775275842368,-150.0,0.000144,2]
[419671345,1775275842378,-150.0,0.000144,2]
[419671346,1775275842388,-317.96,0.00014427,5]
[419671347,1775275842397,-150.0,0.00014545,2]
[419671348,1775275842406,-150.0,0.00014578,2]
[419671349,1775275842415,-150.0,0.000146,2]
[419671350,1775275842424,-151.0,0.00014678,2]
[419671351,1775275842434,-150.0,0.00014691,2]
[419671352,1775275842444,-500.0,0.00014705,2]
[419671353,1775275842453,-150.0,0.0001472,2]
[419671354,1775275842462,-150.0,0.00014756,2]
[419671355,1775275842471,-1500.0,0.00014795,2]
[419671356,1775275842480,-1335.59438787,0.00014795,2]
[419671357,1775275842490,-1080.52027682,0.00014795,2]
[419671358,1775275842499,-1500.0,0.00014795,2]
[419671359,1775275842508,-150.0,0.000148,2]
[419671360,1775275842517,-150.0,0.00014836,2]
[419671361,1775275842526,-327.231567,0.00014896,2]
[419671362,1775275842535,-181.9,0.00014923,2]
[419671363,1775275842544,-181.9,0.00014923,2]
[419671364,1775275842554,-181.9,0.00014923,2]
[419671365,1775275842563,-181.9,0.00014923,2]
[419671366,1775275842572,-181.9,0.00014923,2]
[419671367,1775275842581,-181.9,0.00014923,2]
[419671370,1775275842590,-150.0,0.00014933,2]
[419671372,1775275842599,-150.0,0.00014982,2]
[419671373,1775275842608,-300.0,0.00015,2]
[419671375,1775275842617,-150.0,0.00015,2]
[419671377,1775275842626,-3044.58224996,0.00015,2]
[419671379,1775275842635,-193.55573155,0.00015039,2]
[419671381,1775275842644,-150.0,0.0001504,2]
[419671384,1775275842653,-259.26,0.00015047,2]
[419671386,1775275842662,-988.4,0.00015068,2]
[419671388,1775275842671,-235.697388,0.00015068,2]
[419671390,1775275842680,-235.697388,0.00015068,2]
[419671391,1775275842689,-235.697388,0.00015068,2]
[419671392,1775275842698,-235.697388,0.00015068,2]
[419671393,1775275842707,-7234.12629661,0.0001511,2]
[419671394,1775275842715,-150.0,0.00015111,2]
[419671395,1775275842724,-150.0,0.00015127,2]
[419671396,1775275842733,-500.0,0.00015199,2]
[419671397,1775275842742,-500.0,0.00015199,2]
[419671398,1775275842751,-500.0,0.00015199,2]
[419671399,1775275842760,-500.0,0.00015199,2]
[419671400,1775275842769,-500.0,0.00015199,2]
[419671401,1775275842778,-500.0,0.00015199,2]
[419671402,1775275842787,-250.0,0.00015199,2]
[419671403,1775275842796,-500.0,0.00015199,2]
[419671404,1775275842805,-250.0,0.00015199,2]
[419671405,1775275842814,-500.0,0.00015199,2]
[419671406,1775275842823,-250.0,0.00015199,2]
[419671407,1775275842832,-500.0,0.00015199,2]
[419671408,1775275842840,-250.0,0.00015199,2]
[419671409,1775275842849,-500.0,0.00015199,2]
[419671410,1775275842858,-250.0,0.00015199,2]
[419671411,1775275842867,-500.0,0.00015199,2]
[419671412,1775275842876,-250.0,0.00015199,2]
[419671413,1775275842885,-500.0,0.00015199,2]
[419671414,1775275842893,-250.0,0.00015199,2]
[419671415,1775275842903,-250.0,0.00015199,2]
[419671416,1775275842912,-250.0,0.00015199,2]
[419671417,1775275842921,-250.0,0.00015199,2]
[419671418,1775275842930,-250.0,0.00015199,2]
[419671419,1775275842939,-500.0,0.00015199,2]
[419671420,1775275842948,-500.0,0.00015199,2]
[419671421,1775275842956,-500.0,0.00015199,2]
[419671422,1775275842965,-500.0,0.00015199,2]
[419671423,1775275842974,-151.0,0.00015199,2]
[419671424,1775275842984,-500.0,0.00015199,2]
[419671425,1775275842993,-500.0,0.00015199,2]
[419671426,1775275843002,-500.0,0.00015199,2]
[419671427,1775275843011,-500.0,0.00015199,2]
[419671428,1775275843020,-174.61919141,0.00015199,2]
[419671429,1775275843029,-500.0,0.00015199,2]
[419671430,1775275843039,-500.0,0.00015199,2]
[419671431,1775275843048,-500.0,0.00015199,2]
[419671432,1775275843057,-170.0,0.00015199,2]
[419671433,1775275843066,-170.0,0.00015199,2]
[419671434,1775275843076,-170.0,0.00015199,2]
[419671435,1775275843085,-304.16643308,0.00015199,2]
[419671436,1775275843094,-150.0,0.000152,2]
[419671437,1775275843103,-150.0,0.000152,2]
[419671438,1775275843113,-150.0,0.000152,2]
[419671439,1775275843123,-150.0,0.000152,2]
[419671440,1775275843132,-150.0,0.000152,2]
[419671441,1775275843141,-150.0,0.000152,2]
[419671442,1775275843150,-10000.0,0.00015205,2]
[419671443,1775275843159,-1152.0,0.00015211,2]
[419671444,1775275843169,-4609.0,0.00015236,2]
[419671445,1775275843178,-500.0,0.00015254,2]
[419671446,1775275843187,-151.0,0.00015254,2]
[419671447,1775275843196,-150.0,0.00015273,2]
[419671448,1775275843205,-150.0,0.00015289,2]
[419671449,1775275843214,-1517.64,0.000153,2]
[419671450,1775275843224,-500.0,0.00015309,2]
[419671451,1775275843233,-151.0,0.00015309,2]
[419671452,1775275843243,-2000.0,0.00015342,2]
[419671453,1775275843252,-2000.0,0.00015342,2]
[419671454,1775275843261,-150.0,0.0001536,2]
[419671455,1775275843271,-500.0,0.00015364,2]
[419671456,1775275843280,-151.0,0.00015364,2]
[419671457,1775275843289,-150.0,0.000154,2]
[419671458,1775275843299,-2000.0,0.000154,2]
[419671459,1775275843309,-512.53794019,0.000154,2]
[419671460,1775275843319,-150.0,0.00015418,2]
[419671461,1775275843328,-500.0,0.00015419,2]
[419671462,1775275843337,-151.0,0.00015419,2]
[419671463,1775275843346,-150.0,0.00015467,2]
[419671464,1775275843356,-500.0,0.00015474,2]
[419671465,1775275843366,-151.0,0.00015474,2]
[419671466,1775275843375,-276.84896085,0.00015492,2]
[419671467,1775275843384,-1231.35459603,0.000155,2]
[419671468,1775275843393,-472.49970322,0.00015509,2]
[419671469,1775275843404,-500.0,0.00015529,2]
[419671470,1775275843413,-151.0,0.00015529,2]
[419671471,1775275843422,-187.18197729,0.00015556,2]
[419671472,1775275843432,-150.0,0.00015564,2]
[419671473,1775275843441,-500.0,0.00015584,2]
[419671474,1775275843450,-151.0,0.00015584,2]
[419671475,1775275843460,-150.0,0.000156,2]
[419671476,1775275843469,-2000.0,0.000156,2]
[419671477,1775275843479,-500.0,0.00015639,2]
[419671478,1775275843488,-151.0,0.00015639,2]
[419671479,1775275843498,-150.0,0.00015644,2]
[419671480,1775275843508,-350.0,0.00015672,2]
[419671481,1775275843517,-1701.5685117,0.0001568,2]
[419671482,1775275843528,-150.0,0.0001568,2]
[419671483,1775275843538,-500.0,0.00015694,2]
[419671484,1775275843547,-151.0,0.00015694,2]
[419671485,1775275843557,-2000.0,0.000157,5]
[419671486,1775275843567,-150.0,0.00015709,2]
[419671487,1775275843577,-1000.0,0.00015744,2]
[419671488,1775275843587,-150.0,0.00015746,2]
[419671489,1775275843596,-181.08010149,0.00015747,2]
[419671490,1775275843606,-500.0,0.00015749,2]
[419671491,1775275843616,-188.11543045,0.00015749,2]
[419671492,1775275843626,-306.259251,0.00015753,2]
[419671494,1775275843636,-988.4,0.00015753,2]
[419671496,1775275843645,-150.0,0.00015757,2]
[419671497,1775275843655,-4081.0,0.00015774,2]
[419671499,1775275843664,-1000.0,0.00015786,2]
[419671501,1775275843674,-1000.0,0.000158,2]
[419671502,1775275843684,-150.0,0.000158,2]
[419671504,1775275843694,-2007.0,0.000158,2]
[419671506,1775275843703,-400.0,0.000158,5]
[419671507,1775275843713,-2259.03257639,0.00015807,2]
[419671508,1775275843723,-150.0,0.00015822,2]
[419671509,1775275843732,-150.0,0.00015822,2]
[419671510,1775275843742,-150.0,0.00015824,2]
[419671511,1775275843752,-905.42142001,0.00015835,2]
[419671512,1775275843762,-834.81865,0.0001584,2]
[419671513,1775275843772,-834.81866,0.0001584,2]
[419671514,1775275843782,-150.0,0.00015841,2]
[419671515,1775275843792,-834.81865,0.0001585,2]
[419671517,1775275843802,-150.0,0.00015855,2]
[419671519,1775275843812,-1000.0,0.00015868,2]
[419671521,1775275843823,-500.0,0.0001589,2]
[419671522,1775275843833,-500.0,0.0001589,2]
[419671524,1775275843843,-500.0,0.0001589,2]
[419671525,1775275843852,-500.0,0.0001589,2]
[419671527,1775275843862,-500.0,0.0001589,2]
[419671528,1775275843872,-500.0,0.0001589,2]
[419671529,1775275843882,-500.0,0.0001589,2]
[419671530,1775275843891,-500.0,0.0001589,2]
[419671531,1775275843901,-500.0,0.0001589,2]
[419671532,1775275843911,-500.0,0.0001589,2]
[419671533,1775275843920,-500.0,0.0001589,2]
[419671534,1775275843930,-500.0,0.0001589,2]
[419671535,1775275843940,-500.0,0.0001589,2]
[419671536,1775275843950,-500.0,0.0001589,2]
[419671537,1775275843961,-500.0,0.0001589,2]
[419671538,1775275843970,-500.0,0.0001589,2]
[419671539,1775275843980,-511.61184404,0.0001589,2]
[419671540,1775275843990,-2503.95874889,0.0001589,2]
[419671541,1775275843999,-358.2579183,0.000159,2]
[419671542,1775275844009,-400.0,0.000159,5]
[419671543,1775275844018,-7234.12629661,0.000159,2]
[419671544,1775275844028,-3670.4766423,0.000159,2]
[419671545,1775275844038,-3571.0,0.000159,5]
[419671546,1775275844048,-1000.0,0.00015908,2]
[419671547,1775275844057,-1000.0,0.0001592,2]
[419671548,1775275844067,-1000.0,0.00015922,2]
[419671549,1775275844077,-1000.0,0.00015922,2]
[419671550,1775275844086,-1000.0,0.00015942,2]
[419671551,1775275844096,-150.0,0.00015962,2]
[419671552,1775275844105,-1000.0,0.00015972,2]
[419671553,1775275844115,-500.0,0.00015973,2]
[419671554,1775275844126,-500.0,0.00015973,2]
[419671555,1775275844135,-501.43830167,0.00015973,2]
[419671556,1775275844145,-501.7767113,0.00015973,2]
[419671557,1775275844155,-500.0,0.00015973,2]
[419671558,1775275844164,-278.00730373,0.00015979,2]
[419671559,1775275844173,-2046.7688696,0.00015982,2]
[419671560,1775275844182,-3570.131593,0.00015982,2]
[419671561,1775275844192,-104414.2320666,0.00015982,2]
[419671562,1775275844201,-235.697388,0.00015982,2]
[419671563,1775275844210,-313.327004,0.00015982,2]
[419671564,1775275844220,-235.697388,0.00015982,2]
[419671565,1775275844230,-313.327004,0.00015982,2]
[419671566,1775275844239,-235.697388,0.00015982,2]
[419671567,1775275844249,-313.327004,0.00015982,2]
[419671568,1775275844258,-235.697388,0.00015982,2]
[419671569,1775275844268,-313.327004,0.00015982,2]
[419671570,1775275844278,-155.553,0.00015989,2]
[419671571,1775275844288,-500.0,0.0001599,2]
[419671572,1775275844298,-679.79,0.0001599,2]
[419671573,1775275844308,-1000.0,0.00015996,2]
[419671574,1775275844318,-151.0,0.00015997,2]
[419671575,1775275844328,-666.0,0.00015999,2]
[419671576,1775275844337,-670.84839751,0.00015999,2]
[419671577,1775275844347,-666.0,0.00015999,2]
[419671578,1775275844357,-514.47518034,0.00015999,2]
[419671579,1775275844366,-679.79,0.00015999,2]
[419671580,1775275844376,-679.79,0.00015999,2]
[419671581,1775275844385,-679.79,0.00015999,2]
[419671582,1775275844395,-679.79,0.00015999,2]
[419671583,1775275844404,-679.79,0.00015999,2]
[419671584,1775275844414,-679.79,0.00015999,2]
[419671585,1775275844423,-679.79,0.00015999,2]
[419671586,1775275844433,-679.79,0.00015999,2]
[419671587,1775275844442,-679.79,0.00015999,2]
[419671588,1775275844452,-679.79,0.00015999,2]
[419671589,1775275844461,-679.91586876,0.00015999,2]
[419671590,1775275844471,-153.40099906,0.00016,2]
[419671591,1775275844480,-152.61128617,0.00016,2]
[419671592,1775275844490,-153.32332907,0.00016,2]
[419671593,1775275844499,-256.52934676,0.00016,2]
[419671594,1775275844509,-150.96608219,0.00016,2]
[419671595,1775275844519,-154.4422212,0.00016,2]
[419671596,1775275844528,-151.47849991,0.00016,2]
[419671597,1775275844538,-287.34492743,0.00016,2]
[419671598,1775275844548,-153.65348451,0.00016,2]
[419671599,1775275844557,-150.52172746,0.00016,2]
[419671600,1775275844567,-151.47568116,0.00016,2]
[419671601,1775275844577,-153.45263565,0.00016,2]
[419671602,1775275844587,-4192594.14150766,0.00016,2]
[419671603,1775275844637,-4912.41113677,0.00016,2]
[419671604,1775275845061,-426.3391128,0.000159,2]
[419671605,1775275845070,-1629.35063338,0.00016,2]
[419671606,1775275845083,-336.7928466,0.00016,2]
[419671607,1775275845307,-38739.12049088,0.00016,2]
[419671608,1775275845319,-1810.91461116,0.00016,2]
[419671609,1775275845331,-1407.52319047,0.00016,2]
[419671618,1775275846254,-405455.56973686,0.00016,2]
[419671619,1775275846271,-308.76039961,0.00016,2]
[419671620,1775275846285,-5259.44161048,0.00016,2]
[419671621,1775275846296,-19099.9590286,0.00016,2]
[419671624,1775275846925,-185.4985882,0.00010373,2]
[419671625,1775275846934,-1229.62780217,0.00016,2]
[419671626,1775275846996,-505.0,0.00016,2]
[419671627,1775275847012,-37710.08442343,0.00016,2]
[419671628,1775275847021,-205.549188,0.00016,2]
[419671629,1775275847030,-150.0,0.00016,2]
[419671630,1775275847039,-9309.18423947,0.00016,2]
[419671631,1775275847048,-150.0,0.00016,2]
[419671632,1775275847058,-54090.48085067,0.00016,2]
[419671633,1775275847069,-1835.39450544,0.00016,2]
[419671634,1775275847083,-481.3395008,0.00016,2]
[419671635,1775275847094,-568.01877109,0.00016,2]
[419671636,1775275847105,-28.16848071,0.00016,2]
[419671637,1775275847114,-12992.51838125,0.00016,2]
[419671641,1775275922461,150.0,0.000136,120]
[419671642,1775275929619,200.0,9.7e-05,3]
[419671643,1775275932170,400.0,9.8e-05,3]
[419671644,1775275933782,600.0,9.9e-05,3]
[419671645,1775275935863,800.0,0.0001,3]
[419671646,1775275940313,-151.0,0.00010305,2]
[419671647,1775275940339,-151.0,0.00010305,2]
[419671648,1775275940366,-300.0,0.00010307,2]
[419671649,1775275940392,-150.0,0.00010307,2]
[419671650,1775275940418,-500.0,0.00010308,2]
[419671651,1775275940447,-2003.0,0.00010308,2]
[419671652,1775275965748,300.0,9.6e-05,3]
[419671653,1775275968029,700.0,9.7e-05,3]
[419671654,1775275969916,1100.0,9.8e-05,3]
[419671655,1775275972003,1500.0,9.9e-05,3]
[419671656,1775275974295,1900.0,0.0001,3]
[419671657,1775276062680,156.0,6.726e-05,2]
[419671658,1775276062827,156.0,6.726e-05,2]
[419671659,1775276063077,156.0,6.726e-05,2]
[419671660,1775276063323,156.0,6.726e-05,2]
[419671661,1775276063566,156.0,6.726e-05,2]
[419671662,1775276063847,156.0,6.726e-05,2]
[419671664,1775276064775,166.0,6.726e-05,2]
[419671665,1775276065102,156.0,6.726e-05,2]
[419671666,1775276065359,156.0,6.726e-05,2]
[419671667,1775276065607,156.0,6.726e-05,2]
[419671668,1775276065856,156.0,6.726e-05,2]
[419671669,1775276066106,156.0,6.726e-05,2]
[419671670,1775276066407,156.0,6.726e-05,2]
[419671671,1775276066665,156.0,6.726e-05,2]
[419671672,1775276066911,156.0,6.726e-05,2]
[419671673,1775276067164,156.0,6.726e-05,2]
[419671674,1775276067408,156.0,6.726e-05,2]
[419671675,1775276067652,156.0,6.726e-05,2]
[419671676,1775276067900,156.0,6.726e-05,2]
[419671677,1775276068152,156.0,6.726e-05,2]
[419671678,1775276068759,156.0,6.726e-05,2]
[419671679,1775276068826,156.0,6.726e-05,2]
[419671680,1775276068897,156.0,6.726e-05,2]
[419671681,1775276069152,156.0,6.726e-05,2]
[419671682,1775276069573,156.0,6.726e-05,2]
[419671686,1775276262362,9231.95,9.502e-05,2]
[419671697,1775276445383,768.06,9e-05,2]
[419671698,1775276445413,5365.94,9e-05,2]
[419671699,1775276590216,1600.0,9.226e-05,2]
[419671700,1775276685540,166.66,9.48e-05,2]
[419671701,1775276718582,4997.0,9e-05,2]
[419671702,1775276827041,-449.08375909,9.695e-05,2]
[419671703,1775276831062,-455.24450204,9.695e-05,2]
[419671704,1775276835026,-51.66609487,9.695e-05,2]
[419671705,1775276835046,-193.0,9.719e-05,2]
[419671706,1775276835066,-5000.0,9.744e-05,2]
[419671707,1775276835086,-290.0,9.744e-05,2]
[419671708,1775276835107,-187.95451372,9.761e-05,2]
[419671709,1775276835128,-166.66,9.793e-05,2]
[419671710,1775276835150,-300.0,9.827e-05,2]
[419671711,1775276835169,-300.0,9.827e-05,2]
[419671712,1775276835190,-5070.6031191,9.828e-05,2]
[419671713,1775276835210,-250.0,9.917e-05,2]
[419671714,1775276835229,-165.02681148,9.942e-05,2]
[419671715,1775276835250,-300.0,9.979e-05,2]
[419671716,1775276835270,-1200.0,9.979e-05,2]
[419671717,1775276835290,-261.97643154,9.98e-05,2]
[419671718,1775276835310,-407.0,0.00010023,2]
[419671719,1775276835330,-165.02681148,0.00010025,2]
[419671720,1775276835618,-4999.99,0.00010025,2]
[419671721,1775276835639,-355.81,0.00010025,2]
[419671722,1775276835659,-150.0,0.00010055,2]
[419671723,1775276835679,-1000.0,0.00010055,2]
[419671724,1775276835699,-179.8064311,0.00010056,2]
[419671725,1775276835719,-361.24686444,0.00010056,2]
[419671726,1775276835970,300.0,9.6e-05,3]
[419671727,1775276837714,700.0,9.7e-05,3]
[419671728,1775276839498,150.0,0.00011233,120]
[419671729,1775276839892,1100.0,9.8e-05,3]
[419671730,1775276841032,-847.58481221,9.761e-05,2]
[419671731,1775276841995,1500.0,9.9e-05,3]
[419671732,1775276844083,1800.0,0.0001,3]
[419671733,1775276898893,-250.0,9.761e-05,2]
[419671734,1775276898918,-290.0,9.761e-05,2]
[419671735,1775276898944,-4220.0,0.00010056,2]
[419671736,1775276908424,151.92,9.524e-05,2]
[419671737,1775276955727,1590.35,4.684e-05,2]
[419671738,1775276955924,1494.08,4.93e-05,2]
[419671739,1775276955947,96.27,4.93e-05,2]
[419671740,1775276956130,1590.35,5.177e-05,2]